Cogmind - Beta 13 @@@ ROGUE MODE // 2024.04.21 @ 07:38:43 Player: Exceptionally Mediocre Result: Destroyed by S-10 Pest with Light Assault Rifle Performance ------------- Evolutions (0) 0 Regions Visited (3) 600 Robots Destroyed (41) 205 Value Destroyed (654) 654 Prototype IDs (0) 0 Alien Tech Used (0) 0 Bonus (60) 60 TOTAL SCORE: 1519 Bonus ------- Follower Combat Kills 60 Cogmind --------- Core Integrity 0/250 Matter 217/300 Energy 104/125 System Corruption 1% Temperature Cool (0) Movement Rolling (150) Ox4 Location -10/Subcaves Parts ------- > --- POWER (1) -------- Light Ion Engine > --- PROPULSION (2) --- Subdweller Monowheel > --- UTILITY (2) ------ Huge Storage Unit Structural Scanner > --- WEAPON (2) ------- Light Cannon Light Cannon > --- INVENTORY (25) --- Light Ion Engine Light Ion Engine Subdweller Power Source Subdweller Power Source Light Nuclear Core Flight Unit Flight Unit Flight Unit Improved Heat Sink Signal Interpreter Terrain Scanner Improved Terrain Scanner Improved Terrain Scanner Terrain Scan Processor Propulsion Shielding Particle Gun Particle Gun Subdweller Laser Light Assault Rifle Subdweller Machine Gun Light Cannon Light Cannon Mining Laser Mining Laser Mining Claw Peak State ------------ > --- POWER ------------ Light Ion Engine > --- PROPULSION ------- Compact Wheel Subdweller Monowheel > --- UTILITY ---------- Huge Storage Unit Signal Interpreter > --- WEAPON ----------- Light Assault Rifle Light Cannon > --- INVENTORY -------- Light Ion Engine Light Ion Engine Light Ion Engine Light Nuclear Core Flight Unit Flight Unit Flight Unit Improved Heat Sink Structural Scanner Signal Interpreter Terrain Scanner Improved Terrain Scanner Improved Terrain Scanner Terrain Scan Processor Propulsion Shielding Particle Gun Subdweller Laser Light Assault Rifle Light Cannon Light Cannon Light Cannon Mining Laser Mining Laser Mining Claw [Rating: 11] Favorites ----------- Power Light Ion Engine Engine Light Ion Engine Propulsion Light Treads Treads Light Treads Wheel Subdweller Monowheel Utility Huge Storage Unit Device Structural Scanner Storage Huge Storage Unit Processor Signal Interpreter Weapon Light Assault Rifle Energy Gun Medium Laser Ballistic Gun Light Assault Rifle Ballistic Cannon Light Cannon Slashing Weapon Mining Claw Build | -11 -10 -10 -10 ------- Run | Yrd Mat Min Sub Slots Evolved . | . . . . Power . | . . . . Propulsion . | . . . . Utility . | . . . . Weapon . | . . . . Parts Attached 41 | 7 10 16 8 Power 5 | 1 . 4 . Engine 5 | 1 . 4 . Core . | . . . . Reactor . | . . . . Propulsion 9 | 2 2 3 2 Treads 7 | 2 2 3 . Leg . | . . . . Wheel 2 | . . . 2 Hover . | . . . . Flight . | . . . . Utility 9 | 2 4 2 1 Device 5 | 1 2 1 1 Storage 3 | 1 2 . . Processor 1 | . . 1 . Hackware . | . . . . Protection . | . . . . Artifact . | . . . . Weapon 18 | 2 4 7 5 Energy Gun 2 | 2 . . . Energy Cannon . | . . . . Ballistic Gun 8 | . 4 4 . Ballistic Cannon 6 | . . 3 3 Launcher . | . . . . Special Weapon . | . . . . Impact Weapon . | . . . . Slashing Weapon 2 | . . . 2 Piercing Weapon . | . . . . Special Melee Weapon . | . . . . Unidentified Prototypes . | . . . . Parts Lost 7 | . 1 5 1 Power 1 | . . 1 . Propulsion 3 | . . 2 1 Utility 1 | . 1 . . Weapon 2 | . . 2 . Highest Loss Streak 3 | . 1 3 1 To Critical Strikes . | . . . . Average Slot Usage (%) 96 | . 93 100 94 Engine 14 | . 14 14 14 Treads 25 | . 28 28 6 Wheel 1 | . . . 15 Device 11 | . 8 13 10 Storage 14 | . 14 14 14 Energy Gun 1 | . 3 . . Ballistic Gun 18 | . 25 16 6 Ballistic Cannon 7 | . . 11 15 Naked Turns . | . . . . Heaviest Build 90 | 13 86 88 90 Greatest Support 40 | 40 40 40 40 Greatest Overweight (x) 4 | . 2 2 4 Average Overweight (x) 1 | . 1 2 2 Largest Inventory Capacity 25 | 8 25 25 25 Average Capacity 23 | 7 22 25 25 Most Carried 25 | 4 21 25 25 Average Carried 17 | 1 12 21 24 Final Capacity 25 | 8 25 25 25 Final Carried 25 | 3 21 25 25 Class Distribution -------------------- 59% | Scavenger-Mutant 40% | Mutant Dominant Class ---------------- Mutant | -10/Materials Scavenger-Mutant | -10/Mines Scavenger-Mutant | -10/Subcaves Resources | -11 -10 -10 -10 ----------- Run | Yrd Mat Min Sub Matter Collected 949 | 270 248 324 107 Remotely . | . . . . Salvage Created 1183 | 115 724 297 47 Parts 86 | 6 57 21 2 Haulers Intercepted 2 | . 2 . . Recyclers Shooed 1 | . 1 . . Parts Field Recycled . | . . . . Retrieved Matter . | . . . . Parts Self-Destructed . | . . . . Prevented . | . . . . Kills | -11 -10 -10 -10 ------- Run | Yrd Mat Min Sub Combat Hostiles Destroyed 20 | . 11 7 2 Guns 13 | . 10 3 . Cannons 6 | . . 4 2 AOE 1 | . 1 . . Classes Destroyed 9 | 2 6 . 1 Worker 3 | . 1 2 . Builder 7 | . 5 2 . Tunneler 3 | 2 . 1 . Hauler 2 | . 2 . . Recycler 3 | 1 2 . . Watcher 3 | . 3 . . Swarmer 9 | . 6 3 . Grunt 9 | . 5 4 . Subdweller 2 | . . . 2 Best Kill Streak 6 | 2 6 2 2 Combat Bots Only 3 | . 3 2 2 Max Kills in Single Turn 1 | 1 1 1 1 Gunslinging . | . . . . Exploded 1 | . 1 . . Melee . | . . . . Uniques/NPCs Destroyed . | . . . . Combat | -11 -10 -10 -10 -------- Run | Yrd Mat Min Sub Hostile Shots Fired 164 | . 82 67 15 Missed 40 | . 20 16 4 Damage Taken 1501 | . 624 639 238 Core 255 | . 126 87 42 Absorbed by Shields . | . . . . Core Remaining (%) 100 | 100 . . . Volleys Fired 154 | 11 87 45 11 Largest 2 | 1 2 2 2 Hottest 90 | 50 90 55 70 Shots Fired 298 | 11 174 90 23 Gun 254 | 11 174 68 1 Cannon 44 | . . 22 22 Launcher . | . . . . Special . | . . . . Kinetic 259 | . 146 90 23 Thermal 32 | 11 21 . . Explosive . | . . . . Electromagnetic 7 | . 7 . . Robot Hit Streak 20 | 3 20 11 9 Robot Miss Streak 6 | 3 6 3 1 Penetration Max . | . . . . Secondary Targets 2 | . 1 1 . Max Gunslinging Chain 1 | . 1 1 . Shots Hit Robots 201 | 7 117 63 14 Core Hits 81 | 4 49 24 4 Critical Kills . | . . . . Critical Parts Destroyed 1 | . 1 . . Critical Strikes 3 | . 1 1 1 Destroy 1 | . 1 . . Blast 2 | . . 1 1 Melee Attacks 18 | . . . 18 Impact . | . . . . Slashing 18 | . . . 18 Piercing . | . . . . Sneak Attacks . | . . . . Combat Hostiles . | . . . . Follow-up Attacks . | . . . . Damage Inflicted 1897 | 86 1030 625 156 Guns 1446 | 86 984 376 . Cannons 405 | . . 249 156 Explosions 46 | . 46 . . Melee . | . . . . Ramming . | . . . . Kinetic 1569 | . 788 625 156 Thermal 296 | 86 210 . . Explosive . | . . . . Electromagnetic 32 | . 32 . . Impact . | . . . . Slashing . | . . . . Piercing . | . . . . Highest Corruption 1 | . 1 1 1 Average Corruption 1 | . 1 1 1 Corruption Purged . | . . . . Corruption Blocked . | . . . . Effects 30 | . 8 18 4 Message Errors 8 | . 1 5 2 Matter Fused 9 | . 2 6 1 Heat Flow Errors 4 | . 2 2 . Energy Discharges 6 | . 2 4 . Data Loss (minor) 2 | . 1 1 . Misfires 1 | . . . 1 Overload Shots . | . . . . Overflow Damage 5 | . . 5 . Projectiles 5 | . . 5 . Explosions . | . . . . Melee . | . . . . Knockbacks 4 | . . 1 3 Impact . | . . . . Kinetic 4 | . . 1 3 Secondary . | . . . . Self-Inflicted Damage 19 | . 19 . . Shots 1 | . 1 . . Rammed . | . . . . Targets Rammed . | . . . . Kicked . | . . . . Crushed . | . . . . Highest Temperature 212 | 40 209 212 . Average Temperature 49 | 13 63 43 . Received Heat Transfer 573 | . 204 351 18 Siege Activations . | . . . . Robots Corrupted . | . . . . Combat Hostiles . | . . . . Parts Fried . | . . . . Impact Corruptions . | . . . . Robots Melted . | . . . . Combat Hostiles . | . . . . Parts Melted 1 | . 1 . . Heat Transferred 740 | 259 481 . . Parts Sabotaged . | . . . . Parts Stolen . | . . . . Parts Stripped . | . . . . Power Chain Reactions 1 | . 1 . . Alert | -11 -10 -10 -10 ------- Run | Yrd Mat Min Sub Peak Influence 269 | 15 269 100 . Initial 9 | . 9 . . Average 31 | 6 40 25 . Maximum Alert Level 1 | . 1 . . Low Security (%) 97 | 100 94 100 . Level 1 2 | . 5 . . Level 2 . | . . . . Level 3 . | . . . . Level 4 . | . . . . Level 5 . | . . . . High Security . | . . . . Max Security . | . . . . Squads Dispatched 1 | . 1 . . Investigation 1 | . 1 . . Extermination . | . . . . Reinforcement . | . . . . Assault . | . . . . Garrison . | . . . . Intercept . | . . . . Searches Triggered . | . . . . Construction Impeded . | . . . . Haulers Reinforced . | . . . . Active Scanning Responses . | . . . . Cargo Convoy Interrupts . | . . . . Stealth | -11 -10 -10 -10 --------- Run | Yrd Mat Min Sub Distress Signals 1 | . 1 . . Communications Jammed . | . . . . Distress Signals . | . . . . Times Spotted 35 | . 24 7 4 Peak Tracking Total 4 | . 4 3 3 Tactical Retreats 3 | . 2 1 . Traps | -11 -10 -10 -10 ------- Run | Yrd Mat Min Sub Traps Triggered . | . . . . Indirectly . | . . . . Trap Hack Attempts . | . . . . Triggered . | . . . . Disarmed . | . . . . Reprogrammed . | . . . . Reused . | . . . . Traps Extracted . | . . . . Installed . | . . . . Triggered . | . . . . Machines | -11 -10 -10 -10 ---------- Run | Yrd Mat Min Sub Machines Disabled 1 | . . 1 . Max in Single Turn 1 | . . 1 . Machines Repaired . | . . . . Machines Dismantled . | . . . . Machines Sabotaged . | . . . . Overloaded Fab Kills . | . . . . Hacking | -11 -10 -10 -10 --------- Run | Yrd Mat Min Sub Machines Accessed 5 | . 5 . . Terminals 4 | . 4 . . Fabricators . | . . . . Repair Stations . | . . . . Recycling Units 1 | . 1 . . Scanalyzers . | . . . . Garrison Access . | . . . . Total Hacks 14 | . 14 . . Successful 6 | . 6 . . Failed 8 | . 8 . . Catastrophic 2 | . 2 . . Database Lockouts . | . . . . Manual 12 | . 12 . . Terminals 12 | . 12 . . Fabricators . | . . . . Repair Stations . | . . . . Recycling Units 2 | . 2 . . Scanalyzers . | . . . . Garrison Access . | . . . . Terminal Hacks 1 | . 1 . . Unreport Threat 1 | . 1 . . Fabricator Hacks . | . . . . Repair Station Hacks . | . . . . Recycling Unit Hacks 1 | . 1 . . Retrieve Components 1 | . 1 . . Scanalyzer . | . . . . Garrison Access Hacks . | . . . . Unauthorized Hacks 4 | . 4 . . Terminals 4 | . 4 . . Botnet 4 | . 4 . . Fabricators . | . . . . Repair Stations . | . . . . Recycling Units . | . . . . Scanalyzers . | . . . . Garrison Access . | . . . . Data Cores Recovered . | . . . . Used . | . . . . Hacking Detections 4 | . 4 . . Full Trace Events 2 | . 2 . . Feedback Events 1 | . 1 . . Corruption 1 | . 1 . . Feedback Blocked . | . . . . Robot Schematics Acquired . | . . . . Robots Built . | . . . . Authchips . | . . . . Time . | . . . . Total Robot Build Rating . | . . . . Part Schematics Acquired . | . . . . Parts Built . | . . . . Authchips . | . . . . Time . | . . . . Total Part Build Rating . | . . . . Parts Repaired . | . . . . Time . | . . . . Parts Recycled . | . . . . Recycled Matter . | . . . . Retrieved Matter . | . . . . Retrieved Components 10 | . 10 . . Parts Scanalyzed . | . . . . Part Schematics Acquired . | . . . . Parts Damaged . | . . . . Bothacking | -11 -10 -10 -10 ------------ Run | Yrd Mat Min Sub Used RIF Installer . | . . . . Robots Hacked . | . . . . Non-combat . | . . . . Combat . | . . . . Robot Hacks Applied . | . . . . Relay Couplers Released . | . . . . Fabnet Peak Effective % . | . . . . Robots Rewired . | . . . . Allies Hacked . | . . . . Hacks Repelled . | . . . . Allies | -11 -10 -10 -10 -------- Run | Yrd Mat Min Sub Total Allies 3 | . . 3 . Largest Group 3 | . . 3 3 Highest-Rated Group 40 | . . 40 40 Highest-Rated Ally 16 | . . 16 16 Total Orders . | . . . . Ally Attacks 20 | . . . 20 Total Damage 142 | . . . 142 Kills 2 | . . . 2 Allies Corrupted . | . . . . Allies Melted . | . . . . Intel | -11 -10 -10 -10 ------- Run | Yrd Mat Min Sub Robot Analysis Total . | . . . . Derelict Logs Recovered 1 | . . 1 . Drone Launches . | . . . . Drone Recoveries . | . . . . Exploration | -11 -10 -10 -10 ------------- Run | Yrd Mat Min Sub Turns Passed 4657 | 117 1816 2222 502 Spaces Moved 1497 | 53 555 646 243 Core 3 | 3 . . . Treads 1286 | 50 555 646 35 Legs . | . . . . Wheels 208 | . . . 208 Hover . | . . . . Flight . | . . . . Fastest Speed 50 | 50 160 320 129 Average Speed 273 | 153 277 320 164 Slowest Speed 320 | 160 320 320 320 Overloaded Moves . | . . . . Propulsion Burnouts . | . . . . Robots Hopped . | . . . . Cave-ins Triggered . | . . . . Exploration Rate (%) 50 | 7 73 101 21 Regions Visited 3 Branch Regions 2 Pre-discovered Areas 1 | . . 1 . Known Exits Taken 1 | . . 1 . Unknown Exits Taken 2 | 1 1 . . Scrap Searched 1 | . . 1 . Spaces Dug 4 | . . . 4 Terrain Destroyed 8 | . 4 . 4 Melee 4 | . . . 4 Projectile . | . . . . AOE 4 | . 4 . . Terrain Rammed . | . . . . Walls Destroyed . | . . . . Machines Disabled . | . . . . Actions | -11 -10 -10 -10 --------- Run | Yrd Mat Min Sub Total 1780 | 75 687 723 295 Wait 15 | . 12 3 . Move 1494 | 52 554 645 243 Hop . | . . . . Pick Up 39 | 4 17 11 7 Fast Attach 10 | 7 2 . 1 Attach 7 | . . 5 2 Detach 2 | . 1 . 1 Swap 24 | . 8 11 5 Drop 17 | 1 6 3 7 Fire 154 | 11 87 45 11 Melee 18 | . . . 18 Ram . | . . . . Kick . | . . . . Crush . | . . . . Escape Stasis . | . . . . Rewire . | . . . . Trap . | . . . . Miscellaneous . | . . . . Route ------- -11/Scrapyard -10/Materials (discovered 3 exits: [*Mat x2] / [*Min]) -10/Mines (discovered 3 exits: [*Mat x2] / *Sub) -10/Subcaves History --------- Turn | Location | Event 4 | -11/Scrapyard | Discovered new exit (range 16) 118 | -11/Scrapyard | Entered Materials 206 | -10/Materials | Discovered new exit (range 12) 301 | -10/Materials | Build established: Mutant 683 | -10/Materials | Discovered new exit (range 8) 1247 | -10/Materials | Core integrity fell below 50% 1286 | -10/Materials | Discovered new exit (range 12) 1854 | -10/Materials | Build established: Scavenger-Mutant 1934 | -10/Materials | Entered Mines 2005 | -10/Mines | Lost 3 parts (1p1n1w) 2326 | -10/Mines | Discovered new exit (range 9) 2813 | -10/Mines | Learned location of Storage (-8) 3314 | -10/Mines | Core integrity fell below 20% 3365 | -10/Mines | Discovered new exit (range 4) 3639 | -10/Mines | Assisted by bots powering up and referring to "LRC-V3" 4106 | -10/Mines | Discovered new exit (range 6) 4123 | -10/Mines | Identified exit to Subcaves 4156 | -10/Mines | Entered Subcaves 4156 | -10/Subcaves | Accompanied by 3 allies 4658 | -10/Subcaves | Destroyed by S-10 Pest with Light Assault Rifle Last Messages --------------- 04451_ A2-CBQ(R) knocked back. 04455_ Trooper 1a destroyed. 04457_ A2-CBQ(R) destroyed. 04463_ R6-EOE(R) knocked back. 04465_ Com. Wheel destroyed. 04466_ R6-EOE(R) knocked back. 04469_ R6-EOE(R) destroyed. 04473_ Acquired 36 matter. 04479_ Acquired Particle Gun. 04481_ Subatomizers dissect the Sub. Power Source. 04482_ Acquired 28 matter. 04486_ Dropped Lgt. Ion Engine. 04486_ Acquired Sub. Power Source. 04486_ Acquired 1 matter. 04487_ Acquired 4 matter. 04489_ Acquired 21 matter. 04492_ Dropped Lgt. Assault Rifle. 04492_ Acquired Sub. Machine Gun. 04561_ HGYR:YBFX1QXC0SHACHS YZOLQ%HSP